fUSD/lending_fUSD_20250617
["ID","MTS","AMOUNT","RATE_DAILY","PERIOD"]
[366348234,1750200668822,-490.0,0.00016602,2]
[366348235,1750200668835,-490.0,0.00016602,2]
[366348236,1750200668845,-490.0,0.00016602,2]
[366348237,1750200668856,-186.25238,0.00016602,2]
[366348238,1750200668867,-150.0,0.00016602,2]
[366348239,1750200668878,-150.0,0.00016602,2]
[366348240,1750200668888,-490.0,0.00016602,2]
[366348241,1750200668899,-490.0,0.00016602,2]
[366348242,1750200668909,-500.0,0.00016602,2]
[366348243,1750200668919,-490.0,0.00016602,2]
[366348244,1750200668930,-3002.76,0.00016602,2]
[366348245,1750200668940,-490.0,0.00016602,2]
[366348246,1750200668950,-490.0,0.00016602,2]
[366348247,1750200668961,-2409.48,0.00016602,2]
[366348248,1750200668971,-490.0,0.00016602,2]
[366348249,1750200668982,-300.0,0.00016602,2]
[366348250,1750200668992,-1002.66,0.00016602,2]
[366348251,1750200669002,-490.0,0.00016602,2]
[366348252,1750200669012,-490.0,0.00016602,2]
[366348253,1750200669022,-9447.66,0.00016602,2]
[366348254,1750200669033,-1478.0,0.00016602,2]
[366348255,1750200669044,-490.0,0.00016602,2]
[366348256,1750200669053,-780.14,0.00016602,2]
[366348257,1750200669063,-490.0,0.00016602,2]
[366348258,1750200669073,-2071.3,0.00016602,2]
[366348259,1750200669085,-1315.1,0.00016602,2]
[366348260,1750200669095,-519.53,0.00016602,2]
[366348261,1750200669105,-1029.19,0.00016602,2]
[366348262,1750200669115,-490.0,0.00016602,2]
[366348263,1750200669125,-490.0,0.00016602,2]
[366348264,1750200669135,-490.0,0.00016602,2]
[366348265,1750200669145,-1189.12,0.00016602,2]
[366348266,1750200669155,-490.0,0.00016602,2]
[366348267,1750200669165,-490.0,0.00016602,2]
[366348268,1750200669174,-2051.37,0.00016602,2]
[366348269,1750200669184,-991.53,0.00016602,2]
[366348270,1750200669194,-490.0,0.00016602,2]
[366348271,1750200669204,-4160.19,0.00016602,2]
[366348272,1750200669214,-490.0,0.00016602,2]
[366348273,1750200669224,-490.0,0.00016602,2]
[366348274,1750200669234,-490.0,0.00016602,2]
[366348275,1750200669245,-6552.42,0.00016602,2]
[366348276,1750200669255,-490.0,0.00016602,2]
[366348277,1750200669266,-490.0,0.00016602,2]
[366348278,1750200669276,-2336.07,0.00016602,2]
[366348279,1750200669286,-490.0,0.00016602,2]
[366348280,1750200669296,-1852.15,0.00016602,2]
[366348281,1750200669306,-1859.22,0.00016602,2]
[366348282,1750200669316,-490.0,0.00016602,2]
[366348283,1750200669326,-4647.94,0.00016602,2]
[366348284,1750200669336,-490.0,0.00016602,2]
[366348285,1750200669346,-2693.69,0.00016602,2]
[366348286,1750200669356,-490.0,0.00016602,2]
[366348287,1750200669366,-748.58,0.00016602,2]
[366348288,1750200669376,-2504.31,0.00016602,2]
[366348289,1750200669387,-383.42983589,0.00016602,2]
[366348290,1750200669397,-697.03,0.00016602,2]
[366348291,1750200669408,-1428.93,0.00016602,2]
[366348292,1750200669418,-940.99,0.00016602,2]
[366348293,1750200669429,-388.09233366,0.00016602,2]
[366348294,1750200669439,-490.0,0.00016602,2]
[366348295,1750200669452,-490.0,0.00016602,2]
[366348296,1750200669463,-490.0,0.00016602,2]
[366348297,1750200669474,-490.0,0.00016602,2]
[366348298,1750200669485,-490.0,0.00016602,2]
[366348299,1750200669767,-1444.56,0.00016602,2]
[366348300,1750200669778,-526.61,0.00016602,2]
[366348301,1750200669789,-490.0,0.00016602,2]
[366348302,1750200669801,-1139.69,0.00016602,2]
[366348303,1750200669811,-490.0,0.00016602,2]
[366348304,1750200669821,-490.0,0.00016602,2]
[366348305,1750200669831,-490.0,0.00016602,2]
[366348306,1750200669841,-3388.69,0.00016602,2]
[366348307,1750200669851,-604.04,0.00016602,2]
[366348308,1750200669861,-490.0,0.00016602,2]
[366348309,1750200669872,-490.0,0.00016602,2]
[366348310,1750200669883,-490.0,0.00016602,2]
[366348311,1750200669892,-1858.46,0.00016602,2]
[366348312,1750200669902,-10128.65,0.00016602,2]
[366348313,1750200669912,-831.76,0.00016602,2]
[366348314,1750200669922,-490.0,0.00016602,2]
[366348315,1750200669932,-490.0,0.00016602,2]
[366348316,1750200669942,-490.0,0.00016602,2]
[366348317,1750200669952,-490.0,0.00016602,2]
[366348318,1750200669962,-752.83,0.00016602,2]
[366348319,1750200669972,-490.0,0.00016602,2]
[366348320,1750200669982,-1286.01,0.00016602,2]
[366348321,1750200669992,-500.0,0.00016602,2]
[366348322,1750200670002,-1757.96,0.00016602,2]
[366348323,1750200670011,-490.0,0.00016602,2]
[366348324,1750200670020,-2832.6,0.00016602,2]
[366348325,1750200670030,-490.0,0.00016602,2]
[366348326,1750200670040,-490.0,0.00016602,2]
[366348327,1750200670049,-1282.45,0.00016602,2]
[366348328,1750200670060,-490.0,0.00016602,2]
[366348329,1750200670070,-490.0,0.00016602,2]
[366348330,1750200670081,-490.0,0.00016602,2]
[366348331,1750200670091,-1245.05,0.00016602,2]
[366348332,1750200670101,-490.0,0.00016602,2]
[366348333,1750200670111,-490.0,0.00016602,2]
[366348334,1750200670121,-490.0,0.00016602,2]
[366348335,1750200670131,-367.38931332,0.00016602,2]
[366348336,1750200670140,-7363.17,0.00016602,2]
[366348337,1750200670150,-490.0,0.00016602,2]
[366348338,1750200670160,-490.0,0.00016602,2]
[366348339,1750200670170,-979.71,0.00016602,2]
[366348340,1750200670180,-11023.42,0.00016602,2]
[366348341,1750200670191,-490.0,0.00016602,2]
[366348342,1750200670201,-490.0,0.00016602,2]
[366348343,1750200670212,-1078.23,0.00016602,2]
[366348344,1750200670222,-490.0,0.00016602,2]
[366348345,1750200670232,-490.0,0.00016602,2]
[366348346,1750200670242,-490.0,0.00016602,2]
[366348347,1750200670253,-21885.3,0.00016602,2]
[366348348,1750200670263,-895.2,0.00016602,2]
[366348349,1750200670272,-670.99,0.00016602,2]
[366348350,1750200670282,-490.0,0.00016602,2]
[366348351,1750200670292,-490.0,0.00016602,2]
[366348352,1750200670302,-500.0,0.00016602,2]
[366348353,1750200670312,-490.0,0.00016602,2]
[366348354,1750200670322,-722.39,0.00016602,2]
[366348355,1750200670332,-150.0,0.00016602,2]
[366348356,1750200670341,-490.0,0.00016602,2]
[366348357,1750200670351,-849.22,0.00016602,2]
[366348358,1750200670360,-2462.29,0.00016602,2]
[366348359,1750200670370,-490.0,0.00016602,2]
[366348360,1750200670380,-3454.61,0.00016602,2]
[366348361,1750200670389,-490.0,0.00016602,2]
[366348362,1750200670399,-5424.19,0.00016602,2]
[366348363,1750200670409,-500.0,0.00016602,2]
[366348364,1750200670419,-1397.35,0.00016602,2]
[366348365,1750200670429,-150.0,0.00016602,2]
[366348366,1750200670439,-1788.34,0.00016602,2]
[366348367,1750200670449,-439.0,0.00016602,2]
[366348368,1750200670459,-490.0,0.00016602,2]
[366348369,1750200670468,-490.0,0.00016602,2]
[366348370,1750200670478,-1470.19,0.00016602,2]
[366348371,1750200670487,-740.37,0.00016602,2]
[366348372,1750200670498,-4207.27,0.00016602,2]
[366348373,1750200670508,-2339.36,0.00016602,2]
[366348374,1750200670518,-6570.05,0.00016602,2]
[366348375,1750200670528,-490.0,0.00016602,2]
[366348376,1750200670538,-490.0,0.00016602,2]
[366348377,1750200670548,-490.0,0.00016602,2]
[366348378,1750200670558,-1076.59,0.00016602,2]
[366348379,1750200670568,-490.0,0.00016602,2]
[366348380,1750200670580,-709.25,0.00016602,2]
[366348381,1750200670590,-879.41,0.00016602,2]
[366348382,1750200670599,-490.0,0.00016602,2]
[366348383,1750200670610,-490.0,0.00016602,2]
[366348384,1750200670620,-490.0,0.00016602,2]
[366348385,1750200670630,-450.0,0.00016602,2]
[366348386,1750200670640,-5565.415736,0.00016602,2]
[366348387,1750200670649,-645.79,0.00016602,2]
[366348388,1750200670660,-328.27590921,0.00016602,2]
[366348389,1750200670670,-5565.415736,0.00016602,2]
[366348390,1750200670680,-5565.415736,0.00016602,2]
[366348391,1750200670690,-5565.415736,0.00016602,2]
[366348392,1750200670700,-490.0,0.00016602,2]
[366348393,1750200670710,-2318.91,0.00016602,2]
[366348394,1750200670720,-490.0,0.00016602,2]
[366348395,1750200670729,-3926.43,0.00016602,2]
[366348396,1750200670739,-5565.415736,0.00016602,2]
[366348397,1750200670749,-957.92,0.00016602,2]
[366348398,1750200670759,-490.0,0.00016602,2]
[366348399,1750200670769,-5565.415736,0.00016602,2]
[366348400,1750200670779,-5565.415736,0.00016602,2]
[366348401,1750200670791,-490.0,0.00016602,2]
[366348402,1750200670803,-5565.415738,0.00016602,2]
[366348403,1750200670813,-490.0,0.00016602,2]
[366348404,1750200670823,-1367.91,0.00016602,2]
[366348405,1750200670834,-3978.23,0.00016602,2]
[366348406,1750200670843,-490.0,0.00016602,2]
[366348407,1750200670853,-490.0,0.00016602,2]
[366348408,1750200670863,-1233.88,0.00016602,2]
[366348409,1750200670874,-7936.5,0.00016602,2]
[366348410,1750200670884,-490.0,0.00016602,2]
[366348411,1750200670894,-604.77541053,0.00016602,2]
[366348412,1750200670904,-1157.97,0.00016602,2]
[366348413,1750200670915,-490.0,0.00016602,2]
[366348414,1750200670925,-3147.51,0.00016602,2]
[366348415,1750200670936,-490.0,0.00016602,2]
[366348416,1750200670946,-590.02046708,0.00016602,2]
[366348417,1750200670956,-490.0,0.00016602,2]
[366348418,1750200670966,-490.0,0.00016602,2]
[366348419,1750200670975,-994.4,0.00016602,2]
[366348420,1750200670985,-437.28479467,0.00016602,2]
[366348421,1750200670995,-490.0,0.00016602,2]
[366348422,1750200671004,-495.89,0.00016602,2]
[366348423,1750200671014,-1486.49,0.00016602,2]
[366348424,1750200671024,-1399.37,0.00016602,2]
[366348425,1750200671034,-490.0,0.00016602,2]
[366348426,1750200671044,-490.0,0.00016602,2]
[366348427,1750200671054,-1950.33,0.00016602,2]
[366348428,1750200671063,-490.0,0.00016602,2]
[366348429,1750200671073,-490.0,0.00016602,2]
[366348430,1750200671083,-3654.16,0.00016602,2]
[366348431,1750200671092,-1027.99,0.00016602,2]
[366348432,1750200671102,-490.0,0.00016602,2]
[366348433,1750200671112,-158.80846803,0.00016602,2]
[366348434,1750200671122,-490.0,0.00016602,2]
[366348435,1750200671132,-490.0,0.00016602,2]
[366348436,1750200671142,-500.0,0.00016602,2]
[366348437,1750200671152,-490.0,0.00016602,2]
[366348438,1750200671161,-490.0,0.00016602,2]
[366348439,1750200671171,-22341.73,0.00016602,2]
[366348440,1750200671180,-490.0,0.00016602,2]
[366348441,1750200671190,-490.0,0.00016602,2]
[366348442,1750200671200,-1333.09,0.00016602,2]
[366348443,1750200671210,-490.0,0.00016602,2]
[366348444,1750200671220,-1507.618432,0.00016602,2]
[366348445,1750200671229,-1507.618432,0.00016602,2]
[366348446,1750200671239,-1507.618432,0.00016602,2]
[366348447,1750200671249,-150.0,0.00016602,2]
[366348448,1750200671259,-1507.618432,0.00016602,2]
[366348449,1750200671268,-3417.25,0.00016602,2]
[366348450,1750200671278,-463.64,0.00016602,2]
[366348451,1750200671288,-3098.72,0.00016602,2]
[366348452,1750200671297,-490.0,0.00016602,2]
[366348453,1750200671307,-490.0,0.00016602,2]
[366348454,1750200671317,-490.0,0.00016602,2]
[366348455,1750200671326,-1530.46,0.00016602,2]
[366348456,1750200671336,-1507.618432,0.00016602,2]
[366348457,1750200671346,-1507.618432,0.00016602,2]
[366348458,1750200671356,-1507.618432,0.00016602,2]
[366348459,1750200671366,-490.0,0.00016602,2]
[366348460,1750200671377,-1507.61844,0.00016602,2]
[366348461,1750200671387,-6147.23,0.00016602,2]
[366348462,1750200671397,-1278.41,0.00016602,2]
[366348463,1750200671407,-1019.08,0.00016602,2]
[366348464,1750200671417,-490.0,0.00016602,2]
[366348465,1750200671427,-490.0,0.00016602,2]
[366348466,1750200671437,-1263.36,0.00016602,2]
[366348467,1750200671448,-490.0,0.00016602,2]
[366348468,1750200671458,-527.48413005,0.00016602,2]
[366348469,1750200671467,-3618.58,0.00016602,2]
[366348470,1750200671476,-490.0,0.00016602,2]
[366348471,1750200671486,-2115.99,0.00016602,2]
[366348472,1750200671496,-490.0,0.00016602,2]
[366348473,1750200671506,-490.0,0.00016602,2]
[366348474,1750200671516,-18278.83,0.00016602,2]
[366348475,1750200671526,-543.54,0.00016602,2]
[366348476,1750200671537,-167.16430948,0.00016602,2]
[366348477,1750200671546,-500.0,0.00016602,2]
[366348478,1750200671556,-1083.44,0.00016602,2]
[366348479,1750200671565,-490.0,0.00016602,2]
[366348480,1750200671575,-490.0,0.00016602,2]
[366348481,1750200671586,-2440.3,0.00016602,2]
[366348482,1750200671595,-1437.34,0.00016602,2]
[366348483,1750200671605,-1708.0,0.00016602,2]
[366348484,1750200671615,-490.0,0.00016602,2]
[366348485,1750200671624,-1193.38,0.00016602,2]
[366348486,1750200671634,-490.0,0.00016602,2]
[366348487,1750200671644,-2246.91,0.00016602,2]
[366348488,1750200671654,-748.6,0.00016602,2]
[366348489,1750200671664,-3015.69,0.00016602,2]
[366348490,1750200671673,-518.04,0.00016602,2]
[366348491,1750200671683,-490.0,0.00016602,2]
[366348492,1750200671693,-496.88,0.00016602,2]
[366348493,1750200671703,-1254.3,0.00016602,2]
[366348494,1750200671713,-490.0,0.00016602,2]
[366348495,1750200671723,-597.41,0.00016602,2]
[366348496,1750200671733,-7688.43,0.00016602,2]
[366348497,1750200671743,-490.0,0.00016602,2]
[366348498,1750200671754,-907.51,0.00016602,2]
[366348499,1750200671763,-490.126626,0.00016602,2]
[366348500,1750200671774,-1622.67,0.00016602,2]
[366348501,1750200671783,-490.126626,0.00016602,2]
[366348502,1750200671796,-490.0,0.00016602,2]
[366348503,1750200671806,-490.126626,0.00016602,2]
[366348504,1750200671816,-490.126626,0.00016602,2]
[366348505,1750200671826,-1741.88,0.00016602,2]
[366348506,1750200671837,-603.93,0.00016602,2]
[366348507,1750200671846,-2623.97,0.00016602,2]
[366348508,1750200671856,-2072.44,0.00016602,2]
[366348509,1750200671867,-490.0,0.00016602,2]
[366348510,1750200671877,-1964.26,0.00016602,2]
[366348511,1750200671887,-490.126626,0.00016602,2]
[366348512,1750200671897,-490.126626,0.00016602,2]
[366348513,1750200671906,-490.0,0.00016602,2]
[366348514,1750200671916,-490.126626,0.00016602,2]
[366348515,1750200671926,-490.126624,0.00016602,2]
[366348516,1750200671935,-1439.53,0.00016602,2]
[366348517,1750200671944,-1487.85,0.00016602,2]
[366348518,1750200671954,-764.79,0.00016602,2]
[366348519,1750200671964,-1916.47,0.00016602,2]
[366348520,1750200671975,-3022.94764977,0.00016612,2]
[366348521,1750200671984,-44632.2019917,0.00016618,2]
[366348522,1750200671994,-500.0,0.00016629,2]
[366348523,1750200672003,-150.0,0.00016629,2]
[366348524,1750200672013,-500.0,0.00016629,2]
[366348525,1750200672023,-500.0,0.00016629,2]
[366348526,1750200672033,-500.0,0.00016629,2]
[366348527,1750200672042,-500.0,0.00016629,2]
[366348528,1750200672052,-500.0,0.00016629,2]
[366348529,1750200672062,-500.0,0.00016629,2]
[366348530,1750200672072,-150.0,0.00016629,2]
[366348531,1750200672081,-150.0,0.00016629,2]
[366348532,1750200672091,-500.0,0.00016629,2]
[366348533,1750200672101,-281.30481384,0.00016629,2]
[366348534,1750200672110,-150.0,0.00016629,2]
[366348535,1750200672120,-152.28973217,0.00016629,2]
[366348536,1750200672221,-500.0,0.00016629,2]
[366348537,1750200672231,-150.0,0.00016629,2]
[366348538,1750200672241,-500.0,0.00016629,2]
[366348539,1750200672251,-150.0,0.00016629,2]
[366348540,1750200672261,-197.76387207,0.00016629,2]
[366348541,1750200672272,-500.0,0.00016629,2]
[366348542,1750200672282,-150.0,0.00016629,2]
[366348543,1750200672291,-150.0,0.00016629,2]
[366348544,1750200672301,-500.0,0.00016629,2]
[366348545,1750200672310,-150.0,0.00016629,2]
[366348546,1750200672320,-150.0,0.00016629,2]
[366348547,1750200672329,-200.84532691,0.00016629,2]
[366348548,1750200672339,-163.07518748,0.00016629,2]
[366348549,1750200672348,-500.0,0.00016629,2]
[366348550,1750200672358,-500.0,0.00016629,2]
[366348551,1750200672367,-500.0,0.00016629,2]
[366348552,1750200672377,-500.0,0.00016629,2]
[366348553,1750200672386,-439.0,0.00016629,2]
[366348554,1750200672396,-500.0,0.00016629,2]
[366348555,1750200672405,-150.0,0.00016629,2]
[366348556,1750200672414,-500.0,0.00016629,2]
[366348557,1750200672423,-1708.0,0.00016629,2]
[366348558,1750200672433,-420.0,0.00016642,2]
[366348559,1750200672443,-500.0,0.00016657,2]
[366348560,1750200672452,-150.0,0.00016657,2]
[366348561,1750200672462,-500.0,0.00016657,2]
[366348562,1750200672471,-500.0,0.00016657,2]
[366348563,1750200672482,-500.0,0.00016657,2]
[366348564,1750200672491,-326.96367695,0.00016657,2]
[366348565,1750200672501,-500.0,0.00016657,2]
[366348566,1750200672511,-500.0,0.00016657,2]
[366348567,1750200672521,-150.0,0.00016657,2]
[366348568,1750200672531,-500.0,0.00016657,2]
[366348569,1750200672540,-150.0,0.00016657,2]
[366348570,1750200672550,-210.1562317,0.00016657,2]
[366348571,1750200672560,-151.74234698,0.00016657,2]
[366348572,1750200672570,-255.81439055,0.00016657,2]
[366348573,1750200672580,-150.0,0.00016657,2]
[366348574,1750200672590,-173.40852747,0.00016657,2]
[366348575,1750200672599,-150.0,0.00016657,2]
[366348576,1750200672609,-150.0,0.00016657,2]
[366348577,1750200672619,-300.0,0.00016657,2]
[366348578,1750200672628,-150.0,0.00016657,2]
[366348579,1750200672637,-150.0,0.00016657,2]
[366348580,1750200672647,-500.0,0.00016657,2]
[366348581,1750200672656,-500.0,0.00016657,2]
[366348582,1750200672666,-500.0,0.00016657,2]
[366348583,1750200672675,-500.0,0.00016657,2]
[366348584,1750200672685,-439.0,0.00016657,2]
[366348585,1750200672694,-500.0,0.00016657,2]
[366348586,1750200672704,-150.0,0.00016657,2]
[366348587,1750200672714,-500.0,0.00016657,2]
[366348588,1750200672723,-1708.0,0.00016657,2]
[366348589,1750200672734,-687.66310729,0.00016667,2]
[366348590,1750200672744,-3022.94764977,0.00016667,2]
[366348591,1750200672753,-201.04838079,0.00016667,2]
[366348592,1750200672763,-181.42077172,0.00016667,2]
[366348593,1750200672773,-155.85278577,0.00016667,2]
[366348594,1750200672783,-586.81342611,0.00016667,2]
[366348595,1750200672798,-171.65939478,0.00016667,2]
[366348596,1750200672809,-1704.62975532,0.00016667,2]
[366348597,1750200672818,-500.0,0.00016672,2]
[366348598,1750200672828,-9262.55,0.00016672,2]
[366348599,1750200672839,-299.48067091,0.00016673,2]
[366348600,1750200672849,-500.0,0.00016673,2]
[366348601,1750200672859,-161.1866171,0.00016673,2]
[366348602,1750200672870,-500.77465697,0.00016673,2]
[366348603,1750200672879,-500.0,0.00016673,2]
[366348604,1750200672889,-500.0,0.00016673,2]
[366348605,1750200672898,-500.0,0.00016673,2]
[366348606,1750200672908,-500.0,0.00016673,2]
[366348607,1750200672918,-500.0,0.00016673,2]
[366348608,1750200672927,-212.44081665,0.00016673,2]
[366348609,1750200672936,-500.0,0.00016673,2]
[366348610,1750200672946,-500.0,0.00016673,2]
[366348611,1750200672957,-500.0,0.00016673,2]
[366348612,1750200672967,-500.0,0.00016673,2]
[366348613,1750200672977,-500.0,0.00016673,2]
[366348614,1750200672988,-500.0,0.00016673,2]
[366348615,1750200672998,-500.0,0.00016673,2]
[366348616,1750200673008,-500.0,0.00016673,2]
[366348617,1750200673018,-500.0,0.00016673,2]
[366348618,1750200673028,-500.0,0.00016673,2]
[366348619,1750200673039,-359.12499857,0.00016673,2]
[366348620,1750200673049,-500.0,0.00016673,2]
[366348621,1750200673059,-500.0,0.00016684,2]
[366348622,1750200673069,-150.0,0.00016684,2]
[366348623,1750200673079,-500.0,0.00016684,2]
[366348624,1750200673089,-500.0,0.00016684,2]
[366348625,1750200673099,-500.0,0.00016684,2]
[366348626,1750200673110,-500.0,0.00016684,2]
[366348627,1750200673119,-500.0,0.00016684,2]
[366348628,1750200673128,-150.0,0.00016684,2]
[366348629,1750200673138,-500.0,0.00016684,2]
[366348630,1750200673148,-150.0,0.00016684,2]
[366348631,1750200673158,-150.0,0.00016684,2]
[366348632,1750200673167,-266.73483068,0.00016684,2]
[366348633,1750200673177,-150.0,0.00016684,2]
[366348634,1750200673186,-150.0,0.00016684,2]
[366348635,1750200673195,-200.60640826,0.00016684,2]
[366348636,1750200673205,-225.25747071,0.00016684,2]
[366348637,1750200673216,-500.0,0.00016684,2]
[366348638,1750200673226,-500.0,0.00016684,2]
[366348639,1750200673235,-164.20864549,0.00016684,2]
[366348640,1750200673245,-439.0,0.00016684,2]
[366348641,1750200673255,-500.0,0.00016684,2]
[366348642,1750200673265,-150.0,0.00016684,2]
[366348643,1750200673274,-500.0,0.00016684,2]
[366348644,1750200673284,-1708.0,0.00016684,2]
[366348645,1750200673293,-519.86,0.0001669,2]
[366348646,1750200673303,-354.83,0.00016692,2]
[366348647,1750200673312,-354.83,0.00016692,2]
[366348648,1750200673321,-300.27,0.00016699,2]
[366348649,1750200673331,-1000.0,0.000167,2]
[366348650,1750200673341,-1748.43,0.000167,2]
[366348651,1750200673350,-500.0,0.00016712,2]
[366348652,1750200673360,-201.09892304,0.00016712,2]
[366348653,1750200673370,-606.15113545,0.00016712,2]
[366348654,1750200673379,-500.0,0.00016712,2]
[366348655,1750200673388,-500.0,0.00016712,2]
[366348656,1750200673397,-500.0,0.00016712,2]
[366348657,1750200673407,-500.0,0.00016712,2]
[366348658,1750200673416,-150.0,0.00016712,2]
[366348659,1750200673425,-500.0,0.00016712,2]
[366348660,1750200673435,-272.64459466,0.00016712,2]
[366348661,1750200673444,-150.0,0.00016712,2]
[366348662,1750200673454,-150.0,0.00016712,2]
[366348663,1750200673464,-201.50417562,0.00016712,2]
[366348664,1750200673473,-517.42681723,0.00016712,2]
[366348665,1750200673483,-175.12632724,0.00016712,2]
[366348666,1750200673492,-439.0,0.00016712,2]
[366348667,1750200673502,-500.0,0.00016712,2]
[366348668,1750200673512,-289.3230999,0.00016712,2]
[366348669,1750200673523,-500.0,0.00016712,2]
[366348670,1750200673533,-1708.0,0.00016712,2]
[366348671,1750200673543,-187.73,0.00016712,2]
[366348672,1750200673552,-3022.94764977,0.00016721,2]
[366348673,1750200673562,-500.0,0.00016739,2]
[366348674,1750200673571,-500.0,0.00016739,2]
[366348675,1750200673581,-500.0,0.00016739,2]
[366348676,1750200673591,-500.0,0.00016739,2]
[366348677,1750200673600,-346.97110201,0.00016739,2]
[366348678,1750200673610,-250.0,0.00016739,2]
[366348679,1750200673619,-500.0,0.00016739,2]
[366348680,1750200673629,-230.0,0.00016739,2]
[366348681,1750200673638,-215.666917,0.00016739,2]
[366348682,1750200673648,-439.0,0.00016739,2]
[366348683,1750200673658,-500.0,0.00016739,2]
[366348684,1750200673667,-500.0,0.00016739,2]
[366348685,1750200673677,-1708.0,0.00016739,2]
[366348686,1750200673687,-5776.14600224,0.00016742,2]
[366348687,1750200673697,-453.24667931,0.00016757,2]
[366348688,1750200673707,-500.0,0.00016766,2]
[366348689,1750200673721,-500.0,0.00016766,2]
[366348690,1750200673731,-500.0,0.00016766,2]
[366348691,1750200673741,-500.0,0.00016766,2]
[366348692,1750200673751,-9262.55,0.00016766,2]
[366348693,1750200673761,-9262.55,0.00016766,2]
[366348694,1750200673773,-9262.55,0.00016766,2]
[366348695,1750200673783,-9262.55,0.00016766,2]
[366348696,1750200673796,-300.0,0.00016766,2]
[366348697,1750200673806,-300.0,0.00016766,2]
[366348698,1750200673816,-300.0,0.00016766,2]
[366348699,1750200673826,-300.0,0.00016766,2]
[366348700,1750200673838,-282.0,0.00016766,2]
[366348701,1750200673847,-439.0,0.00016766,2]
[366348702,1750200673857,-500.0,0.00016766,2]
[366348703,1750200673867,-500.0,0.00016766,2]
[366348704,1750200673877,-1708.0,0.00016766,2]
[366348705,1750200673887,-210.01610333,0.00016767,2]
[366348706,1750200673896,-490.0,0.00016767,2]
[366348707,1750200673906,-490.0,0.00016767,2]
[366348708,1750200673915,-703.95,0.00016767,2]
[366348709,1750200673925,-490.0,0.00016767,2]
[366348710,1750200673935,-2469.9885,0.00016767,2]
[366348711,1750200673944,-490.0,0.00016767,2]
[366348712,1750200673955,-590.28,0.00016767,2]
[366348713,1750200673965,-490.0,0.00016767,2]
[366348714,1750200673975,-490.0,0.00016767,2]
[366348715,1750200673985,-586.56,0.00016767,2]
[366348716,1750200673995,-490.0,0.00016767,2]
[366348717,1750200674005,-2190.002336,0.00016767,2]
[366348718,1750200674015,-490.0,0.00016767,2]
[366348719,1750200674025,-490.0,0.00016767,2]
[366348720,1750200674034,-490.0,0.00016767,2]
[366348721,1750200674044,-490.0,0.00016767,2]
[366348722,1750200674054,-490.0,0.00016767,2]
[366348723,1750200674064,-561.79,0.00016767,2]
[366348724,1750200674074,-490.0,0.00016767,2]
[366348725,1750200674084,-490.0,0.00016767,2]
[366348726,1750200674093,-490.0,0.00016767,2]
[366348727,1750200674103,-490.0,0.00016767,2]
[366348728,1750200674112,-207.74323961,0.00016767,2]
[366348729,1750200674122,-490.0,0.00016767,2]
[366348730,1750200674132,-490.0,0.00016767,2]
[366348731,1750200674141,-599.69,0.00016767,2]
[366348732,1750200674151,-490.0,0.00016767,2]
[366348733,1750200674165,-490.0,0.00016767,2]